bitfinex-derivatives/quotes_ETHF0:USTF0_20260214
["timestamp","ask_amount","ask_price","bid_price","bid_amount"]
[1771047131134,0.55721583,2054.7,2053.8,0.57991304]
[1771047131331,0.55721583,2054.5,2053.8,0.00581203]
[1771047132229,0.55721583,2054.3,2053.6,0.57410101]
[1771047133327,0.55721583,2054.3,2053.6,0.57941771]
[1771047133534,0.55721583,2054.3,2053.6,0.0053167]
[1771047139949,0.55721583,2054.3,2053.6,0.57941771]
[1771047140244,0.55721583,2054.3,2053.7,0.57410101]
[1771047161559,0.53620853,2054.4,2053.7,0.57410101]
[1771047162161,0.53620853,2054.6,2053.7,0.57410101]
[1771047166867,0.53620853,2054.5,2053.9,0.55937661]
[1771047167560,0.53620853,2054.6,2054.1,0.55937661]
[1771047171271,0.53620853,2054.6,2053.9,0.55937661]
[1771047184778,2.90763587,2054.6,2053.9,0.55937661]
[1771047184980,0.54986027,2054.5,2053.9,0.55937661]
[1771047195093,0.54986027,2054.7,2054.1,0.52828923]
[1771047211302,0.53520549,2054.6,2053.9,0.53643272]
[1771047211607,0.53520549,2054.4,2053.8,0.53643272]
[1771047216011,0.53520549,2054.4,2053.7,0.53643272]
[1771047221310,0.53520549,2054.4,2053.8,2.93416789]
[1771047222313,0.53520549,2054.4,2054.0,2.93416789]
[1771047222515,0.53520549,2054.4,2054.1,0.56274055]
[1771047223315,0.53174541,2054.7,2054.1,0.56274055]
[1771047255546,0.53174541,2054.7,2054.0,0.54405685]
[1771047255746,0.54315913,2054.6,2053.8,0.54405685]
[1771047290862,0.54315913,2054.6,2053.9,0.54221032]
[1771047291062,0.54315913,2054.6,2053.8,2.91355948]
[1771047291759,0.54315913,2054.6,2053.9,0.54221032]
[1771047302273,0.54315913,2054.6,2054.1,0.58036649]
[1771047312989,0.54315913,2054.6,2054.0,0.58036649]
[1771047313485,0.54315913,2054.6,2054.2,0.58036649]
[1771047313687,0.58559142,2054.9,2054.2,0.58036649]
[1771047313892,0.58559142,2054.9,2054.4,0.58036649]
[1771047326100,0.58559142,2054.9,2054.3,0.58036649]
[1771047326397,0.58559142,2054.5,2054.1,0.58036649]
[1771047329097,0.58559142,2054.8,2054.1,0.58036649]
[1771047329298,0.58559142,2054.8,2054.2,0.58036649]
[1771047335301,2.93416225,2055.0,2054.2,0.58036649]
[1771047335501,0.56281309,2054.9,2054.2,0.58036649]
[1771047345007,2.37134916,2054.8,2054.2,0.58036649]
[1771047345208,0.53076759,2054.7,2054.2,0.58036649]
[1771047354415,0.53076759,2054.7,2054.0,0.55246309]
[1771047360117,0.53076759,2054.7,2053.9,0.55246309]
[1771047360520,0.53076759,2054.6,2053.8,10.75657511]
[1771047360716,0.53076759,2054.4,2053.7,0.55246309]
[1771047363920,0.53076759,2054.4,2053.8,0.55652175]
[1771047386250,0.53076759,2054.4,2053.6,0.56183845]
[1771047387749,0.53076759,2054.4,2053.6,0.0053167]
[1771047387951,0.56432529,2054.2,2053.6,0.0053167]
[1771047390751,0.56432529,2054.0,2053.2,5.45152175]
[1771047391955,0.56963544,2054.0,2053.4,10.47948421]
[1771047392255,0.56963544,2054.0,2053.4,0.00616876]
[1771047394948,0.54119049,2053.6,2052.7,0.58357789]
[1771047395853,0.54119049,2053.6,2052.7,0.58732183]
[1771047398057,0.54119049,2053.6,2052.9,0.58357789]
[1771047400558,0.54119049,2053.6,2052.8,0.57594945]
[1771047410980,0.54119049,2053.6,2053.0,0.57594945]
[1771047415980,0.54119049,2053.6,2053.2,0.57594945]
[1771047416173,0.5431397,2053.7,2053.2,0.57594945]
[1771047417278,0.5431397,2053.9,2053.4,0.57594945]
[1771047421185,0.58643342,2054.0,2053.6,0.53309532]
[1771047421485,0.00531015,2054.0,2053.6,0.53309532]
[1771047432791,0.58643342,2054.0,2053.6,0.53309532]
[1771047439800,0.58643342,2054.0,2053.4,0.53309532]
[1771047446801,0.58112327,2053.8,2053.4,0.53309532]
[1771047449104,0.58112327,2053.8,2053.1,0.53309532]
[1771047449303,2.95466255,2053.6,2053.0,0.53309532]
[1771047449502,0.58112327,2053.5,2053.0,0.53309532]
[1771047449703,2.37353928,2053.8,2053.0,0.53309532]
[1771047449898,0.58112327,2053.6,2053.0,0.53309532]
[1771047454406,0.57664488,2053.5,2053.0,0.53309532]
[1771047455414,0.57664488,2053.5,2052.9,5.41373983]
[1771047456312,2.37353928,2053.8,2053.0,0.55473983]
[1771047456517,0.57664488,2053.7,2053.2,0.55473983]
[1771047462621,0.55482238,2053.9,2053.2,0.55473983]
[1771047467826,0.55482238,2053.9,2053.4,0.53464704]
[1771047468328,0.55482238,2053.9,2053.0,2.37353928]
[1771047468329,0.56013253,2054.0,2053.6,0.53464704]
[1771047478932,0.00531015,2054.0,2053.6,0.53464704]
[1771047479231,0.55482238,2054.2,2053.6,0.53464704]
[1771047480133,0.56064271,2054.2,2053.6,0.53464704]
[1771047484334,0.56064271,2054.2,2053.3,0.54088416]
[1771047522177,0.56064271,2054.2,2053.5,0.56567531]
[1771047534883,0.57096203,2054.1,2053.5,0.56567531]
[1771047537580,0.57096203,2054.1,2053.7,0.56567531]
[1771047537775,0.57096203,2054.5,2053.8,2.61582655]
[1771047537979,0.57096203,2054.3,2053.7,0.56567531]
[1771047538180,0.57096203,2054.3,2053.6,2.37224655]
[1771047538384,0.57096203,2054.3,2053.6,0.56567531]
[1771047538886,0.57577255,2054.3,2053.6,0.56567531]
[1771047540386,0.57096203,2054.1,2053.6,0.56567531]
[1771047541482,0.57096203,2054.1,2053.4,2.37224655]
[1771047541483,0.57084493,2053.9,2053.4,0.53492616]
[1771047541883,0.57084493,2053.7,2053.0,0.53492616]
[1771047542084,0.57084493,2053.7,2052.9,15.13212527]
[1771047542085,0.57084493,2053.3,2052.8,0.53492616]
[1771047542486,0.57084493,2053.3,2052.7,0.5386701]
[1771047542786,0.57084493,2053.1,2052.7,0.00374394]
[1771047543188,0.57084493,2053.1,2052.7,0.5386701]
[1771047544491,0.57084493,2053.2,2052.7,0.5386701]
[1771047551500,0.57084493,2053.4,2052.9,0.53492616]
[1771047551695,0.57084493,2053.4,2052.8,2.90717271]
[1771047559401,0.57084493,2053.1,2052.7,0.5386701]
[1771047559601,0.57084493,2053.1,2052.7,0.00374394]
[1771047559801,0.57084493,2053.1,2052.5,0.53492616]
[1771047560002,0.57084493,2052.9,2052.4,0.53492616]
[1771047561106,0.57084493,2052.9,2052.4,0.53914432]
[1771047561908,0.57084493,2052.9,2052.5,0.53492616]
[1771047564409,0.57084493,2053.0,2052.5,0.53492616]
[1771047564800,0.57084493,2053.3,2052.9,0.53492616]
[1771047565600,0.57084493,2053.3,2052.8,2.37224655]
[1771047565805,0.57084493,2053.3,2052.7,0.53492616]
[1771047566008,0.57084493,2053.1,2052.5,2.90717271]
[1771047566403,0.57084493,2053.1,2052.5,0.53492616]
[1771047567215,0.57084493,2053.1,2052.6,0.53492616]
[1771047567416,0.57084493,2053.1,2052.7,2.90717271]
[1771047567714,0.57084493,2053.1,2052.8,0.53492616]
[1771047567916,0.57084493,2053.3,2052.8,0.53492616]
[1771047569115,0.57084493,2053.3,2052.6,0.53492616]
[1771047570319,0.57084493,2053.1,2052.6,0.53492616]
[1771047572115,0.55373069,2053.3,2052.6,0.53492616]
[1771047572815,2.37224655,2053.4,2052.6,0.53492616]
[1771047572816,0.55373069,2053.1,2052.6,0.53492616]
[1771047579826,0.55373069,2053.1,2052.5,0.5643355]
[1771047580133,0.54959859,2052.9,2052.5,0.5643355]
[1771047595137,2.37224655,2052.8,2052.5,0.5643355]
[1771047595343,2.92809116,2052.8,2052.5,0.5643355]
[1771047595543,0.54959859,2052.7,2052.4,0.00421816]
[1771047595739,0.54959859,2052.7,2052.4,0.56855366]
[1771047595947,2.37224655,2052.6,2052.3,0.47263489]
[1771047596135,2.92184514,2052.6,2052.3,0.47263489]
[1771047596941,0.54959859,2052.6,2052.3,0.47759708]
[1771047597637,0.00624602,2052.8,2052.3,0.47759708]
[1771047597638,0.55584461,2052.8,2052.3,0.47759708]
[1771047599148,0.00624602,2052.8,2052.3,0.47759708]
[1771047599749,0.55584461,2052.8,2052.3,0.47759708]
[1771047600245,0.00624602,2052.8,2052.3,0.47759708]
[1771047600447,0.54959859,2053.1,2052.3,0.47759708]
[1771047601448,0.55560783,2053.1,2052.3,0.47759708]
[1771047602249,0.54923326,2052.8,2052.3,0.47759708]
[1771047609258,0.54923326,2052.8,2052.3,0.00496219]
[1771047611759,0.54923326,2052.8,2052.3,0.48844777]
[1771047620065,0.54923326,2053.0,2052.3,0.48844777]
[1771047620661,0.00600924,2053.1,2052.3,0.48844777]
[1771047621162,0.54923326,2053.0,2052.3,0.48844777]
[1771047621863,0.5552425,2053.1,2052.4,0.24375]
[1771047622063,0.00600924,2053.1,2052.5,0.48209273]
[1771047622259,0.54923326,2053.3,2052.6,0.24372]
[1771047622467,0.54923326,2053.3,2052.6,0.74377124]
[1771047622663,0.54923326,2053.3,2052.6,0.24372]
[1771047623064,0.54923326,2053.1,2052.6,0.24372]
[1771047623266,0.55293976,2053.1,2052.6,0.24372]
[1771047624970,0.55293976,2053.1,2052.6,0.74856369]
[1771047625164,0.0037065,2053.1,2052.7,0.50484369]
[1771047625363,0.55293976,2053.1,2052.7,0.50484369]
[1771047626569,0.0037065,2053.1,2052.7,0.50484369]
[1771047626971,0.55293976,2053.1,2052.7,0.50484369]
[1771047635583,0.0037065,2053.1,2052.7,0.50484369]
[1771047635974,0.53655407,2053.1,2052.7,0.50484369]
[1771047638485,0.53655407,2053.1,2052.6,0.7424734]
[1771047638984,0.52974143,2053.0,2052.4,0.49851906]
[1771047646596,0.52974143,2053.0,2052.3,0.50318031]
[1771047656902,0.52974143,2052.9,2052.3,0.50318031]
[1771047670921,0.52974143,2052.9,2052.3,0.00496219]
[1771047671130,0.52974143,2052.9,2052.3,0.49379867]
[1771047708355,0.52974143,2052.9,2052.3,0.00496219]
[1771047709857,0.52974143,2052.9,2052.3,0.51995377]
[1771047715262,0.57207892,2052.9,2052.4,0.50954055]
[1771047716356,0.57578542,2053.1,2052.4,0.50954055]
[1771047721363,0.0037065,2053.1,2052.6,0.57420556]
[1771047731364,0.55105585,2053.5,2052.8,0.57420556]
[1771047732170,0.55105585,2053.8,2052.8,0.57420556]
[1771047732372,0.55105585,2053.6,2052.8,0.57420556]
[1771047736366,0.55650374,2053.8,2052.8,0.57420556]
[1771047737073,0.55105585,2053.7,2052.8,0.57420556]
[1771047737773,0.55105585,2053.5,2052.8,0.57420556]
[1771047740175,0.55105585,2053.3,2052.8,0.57420556]
[1771047762583,0.55105585,2053.3,2052.7,0.24371]
[1771047762782,0.55105585,2053.3,2052.7,0.82164913]
[1771047769387,0.55105585,2053.3,2052.7,0.24371]
[1771047770086,0.58241921,2053.1,2052.7,0.24371]
[1771047770292,0.58241921,2053.1,2052.5,0.57793913]
[1771047771292,0.58241921,2053.1,2052.7,0.24371]
[1771047773297,0.58241921,2053.1,2052.8,0.57793913]
[1771047776099,0.58241921,2053.2,2052.8,0.57793913]
[1771047776300,2.17685201,2053.6,2052.8,0.57793913]
[1771047776501,0.58241921,2053.4,2052.8,0.57793913]
[1771047780903,0.58241921,2053.3,2052.8,0.57793913]
[1771047781098,0.00544789,2053.8,2053.3,0.53203384]
[1771047781303,0.57853104,2053.8,2053.3,0.53203384]
[1771047781502,2.17632418,2053.6,2053.2,0.53203384]
[1771047781803,0.57308315,2053.5,2052.8,0.53203384]
[1771047785010,0.57308315,2053.5,2053.0,0.53203384]
[1771047800520,0.57308315,2053.6,2053.0,0.53203384]
[1771047804328,0.57853104,2053.8,2053.5,2.70835802]
[1771047804524,0.57853104,2053.8,2053.3,0.53203384]
[1771047806629,0.57853104,2053.8,2053.5,0.53203384]
[1771047806930,0.00544789,2053.8,2053.5,0.53203384]
[1771047807120,0.57308315,2054.0,2053.7,0.53203384]
[1771047807324,0.57308315,2054.3,2053.7,0.53203384]
[1771047808132,0.57685725,2054.3,2053.7,0.53203384]
[1771047808530,0.57308315,2054.1,2053.6,0.53203384]
[1771047808733,0.57308315,2054.1,2053.4,0.53203384]
[1771047808933,0.57308315,2053.9,2053.4,0.53203384]
[1771047811333,0.57308315,2053.9,2053.3,0.58259843]
[1771047813833,0.54364212,2053.7,2053.3,0.58259843]
[1771047814334,0.54364212,2053.5,2053.1,0.58259843]
[1771047814535,0.54364212,2053.7,2053.1,0.58259843]
[1771047817333,2.17632418,2054.0,2053.1,0.58259843]
[1771047817638,0.54364212,2053.9,2053.3,0.58259843]
[1771047825740,2.76236042,2054.0,2053.3,0.58259843]
[1771047826341,0.58603624,2053.9,2053.3,0.58259843]
[1771047831444,2.17632418,2054.0,2053.3,0.58259843]
[1771047831644,2.76236042,2054.0,2053.3,0.58259843]
[1771047836352,0.58603624,2053.9,2053.3,0.58259843]
[1771047836953,2.76236042,2053.8,2053.3,0.58259843]
[1771047837153,0.58603624,2053.7,2053.3,0.58259843]
[1771047840659,2.17632418,2053.8,2053.3,0.58259843]
[1771047840861,0.58603624,2053.8,2053.3,0.58259843]
[1771047845260,0.57040154,2053.9,2053.3,0.58259843]
[1771047872482,2.70416568,2054.1,2053.3,0.58259843]
[1771047872677,0.52920453,2054.0,2053.3,0.58259843]
[1771047900494,0.57103241,2053.9,2053.3,0.58259843]
[1771047900700,0.57103241,2053.9,2053.0,0.24367]
[1771047900899,2.17634002,2053.2,2052.9,0.47458795]
[1771047901197,0.56464793,2053.7,2053.2,0.47436354]
[1771047901698,0.56464793,2053.9,2053.3,0.47439272]
[1771047901898,0.56464793,2053.7,2053.3,0.47439272]
[1771047906797,2.17634002,2054.0,2053.3,0.47439272]
[1771047907002,0.56464793,2054.0,2053.3,0.47439272]
[1771047907302,0.56464793,2054.0,2053.5,0.49662581]
[1771047910004,0.56464793,2054.2,2053.7,0.49464434]
[1771047914897,0.0037741,2054.3,2053.7,0.73823434]
[1771047915106,0.56464793,2054.5,2054.1,0.50257844]
[1771047916105,0.57010256,2054.5,2054.1,0.50684413]
[1771047916408,0.56464793,2054.7,2054.1,0.50684413]
[1771047917502,0.56963655,2054.7,2054.1,0.50684413]
[1771047921116,0.56963655,2054.7,2054.2,0.50314084]
[1771047928825,0.00498862,2054.7,2054.2,0.50314084]
[1771047929120,0.56963655,2054.7,2054.2,0.50314084]
[1771047932513,0.00498862,2054.7,2054.2,0.50314084]
[1771047938320,0.54581333,2054.7,2054.2,0.50314084]
[1771047953127,0.55049388,2054.4,2054.1,0.24779569]
[1771047958027,0.55049388,2054.4,2053.9,0.50788753]
[1771047959027,0.55049388,2054.4,2053.9,0.51268703]
[1771047959227,0.55049388,2054.4,2054.1,0.24353]
[1771047959428,0.55049388,2054.4,2053.9,0.51268703]
[1771047960129,0.55049388,2054.4,2054.1,0.24353]
[1771047960825,0.55049388,2054.4,2053.9,0.51268703]
[1771047961726,0.00498862,2054.7,2053.9,0.51268703]
[1771047961923,0.58546022,2054.6,2053.9,0.51268703]
[1771047967932,0.58546022,2054.6,2053.9,0.0047995]
[1771047977041,2.75917954,2054.6,2053.9,0.0047995]
[1771047977236,0.58546022,2054.5,2053.9,0.0047995]
[1771047977435,0.58546022,2054.3,2053.6,0.76024173]
[1771047978338,0.58546022,2054.3,2053.6,0.76610559]
[1771047981348,0.58546022,2054.3,2053.7,0.51762554]
[1771048006374,0.55327545,2054.6,2053.9,0.5234259]
[1771048022906,0.55327545,2054.6,2054.0,0.52957658]
[1771048030218,0.55327545,2054.6,2054.2,0.53125355]
[1771048030414,0.55198123,2054.7,2054.2,0.53125355]
[1771048031411,0.55601296,2054.7,2054.2,0.53125355]
[1771048037316,0.55601296,2054.7,2054.1,0.24354]
[1771048037508,0.55601296,2054.7,2054.1,0.77926087]
[1771048037706,0.55601296,2054.7,2054.2,0.53572087]
[1771048039918,0.55198123,2054.5,2054.1,0.24354]
[1771048040117,0.55198123,2054.5,2054.1,0.77926087]
[1771048041117,0.55198123,2054.5,2054.1,0.24354]
[1771048041919,0.55198123,2054.5,2054.1,0.77926087]
[1771048043420,0.55198123,2054.5,2054.1,0.24354]
[1771048043620,2.37003584,2054.4,2054.1,0.24354]
[1771048043821,0.55198123,2054.3,2053.8,0.53572087]
[1771048044122,0.55198123,2054.3,2054.1,0.24354]
[1771048044723,0.55198123,2054.3,2053.9,0.53572087]
[1771048045222,0.55198123,2054.3,2054.1,0.24354]
[1771048049927,0.55198123,2054.5,2054.2,0.53572087]
[1771048051528,0.55942765,2054.7,2054.4,0.56148179]
[1771048058031,0.00403173,2054.7,2054.4,0.56148179]
[1771048058326,0.55539592,2054.9,2054.4,0.56148179]
[1771048059134,0.55984024,2054.9,2054.4,0.56148179]
[1771048061326,0.55984024,2054.9,2054.3,0.24352]
[1771048061527,0.53628984,2054.8,2054.4,0.55425154]
[1771048070638,0.53628984,2054.8,2054.3,0.79777154]
[1771048071232,0.53628984,2054.8,2054.4,0.55425154]
[1771048074841,2.90632568,2054.7,2054.3,0.79777154]
[1771048075140,2.90632568,2054.7,2054.4,0.55425154]
[1771048075339,0.53628984,2054.7,2054.4,0.55425154]
[1771048082347,0.23153329,2054.8,2054.4,0.55425154]
[1771048083849,0.23153329,2054.8,2054.3,0.56438889]
[1771048092159,0.01529282,2054.8,2054.3,0.56438889]
[1771048094360,0.00444432,2054.9,2054.3,0.56438889]
[1771048105869,0.00444432,2054.9,2054.3,2.93456614]
[1771048106374,0.00444432,2054.9,2054.4,0.57383856]
[1771048108873,0.00030956,2054.9,2054.4,0.57383856]
[1771048118482,0.02250992,2054.9,2054.4,0.57383856]
[1771048118882,0.00156949,2054.9,2054.4,0.57383856]
[1771048119279,0.0018585,2055.1,2054.4,0.57383856]
[1771048119980,0.00189006,2055.0,2054.4,0.57383856]
[1771048137288,0.00439747,2054.9,2054.4,0.57383856]
[1771048144801,0.00439747,2054.9,2054.3,0.59107123]
[1771048145002,2.37093206,2054.7,2054.3,0.59107123]
[1771048154609,2.37093206,2054.9,2054.3,0.59107123]
[1771048154908,0.0044864,2055.1,2054.5,0.59239239]
[1771048155608,2.37093206,2055.0,2054.5,0.59239239]
[1771048157009,2.37093206,2054.8,2054.5,0.59239239]
[1771048159507,2.94857457,2054.8,2054.3,0.54508123]
[1771048160105,0.57764251,2054.7,2054.3,0.54508123]
[1771048169522,2.37093206,2054.8,2054.3,0.54508123]
[1771048169724,2.94857457,2054.8,2054.3,0.54508123]
[1771048170120,2.37093206,2054.8,2054.3,0.54508123]
[1771048170422,6.41093206,2055.0,2054.3,0.54508123]
[1771048170620,6.98857457,2055.0,2054.3,0.54508123]
[1771048174831,0.58254045,2054.9,2054.3,0.54508123]
[1771048177035,4.04,2055.0,2054.3,0.54508123]
[1771048177233,4.62708757,2055.1,2054.4,2.37093206]
[1771048177534,4.62708757,2055.1,2054.5,0.55319317]
[1771048187134,2.37093206,2055.0,2054.5,0.55319317]
[1771048187340,0.5602359,2054.9,2054.5,0.55319317]
[1771048189036,0.5602359,2054.9,2054.3,0.5384177]
[1771048189835,0.5602359,2054.7,2054.3,0.5384177]
[1771048190043,0.5602359,2054.5,2054.2,0.7819477]
[1771048190236,2.37093206,2055.0,2054.3,0.5384177]
[1771048190237,0.5602359,2054.7,2054.3,0.5384177]
[1771048190633,2.93116796,2054.8,2054.3,0.5384177]
[1771048190939,0.5602359,2055.0,2054.3,0.5384177]
[1771048191340,2.93116796,2054.9,2054.3,0.5384177]
[1771048193546,0.5602359,2054.8,2054.3,0.5384177]
[1771048200251,2.37093206,2054.9,2054.3,0.5384177]
[1771048200252,2.93116796,2054.9,2054.3,0.5384177]
[1771048202347,2.37093206,2054.9,2054.3,0.5384177]
[1771048203754,2.95292229,2054.9,2054.3,0.5384177]
[1771048205050,0.58197538,2054.8,2054.3,0.5384177]
[1771048205657,2.95290744,2054.7,2054.3,0.5384177]
[1771048206958,0.58197538,2054.7,2054.3,0.5384177]
[1771048222065,0.56947254,2054.9,2054.3,0.5384177]
[1771048246481,2.37046409,2055.0,2054.3,0.5384177]
[1771048246687,0.55788191,2054.9,2054.3,0.5384177]
[1771048248183,2.37046409,2054.8,2053.8,0.5543295]
[1771048248390,0.55788191,2054.7,2053.8,0.5543295]
[1771048250287,0.55788191,2054.7,2053.9,0.5543295]
[1771048250482,6.41495049,2055.1,2053.9,0.5543295]
[1771048250689,0.55788191,2054.9,2053.9,0.5543295]
[1771048250885,0.55788191,2054.9,2054.1,0.5543295]
[1771048251391,0.55788191,2055.0,2054.2,0.5543295]
[1771048252086,0.0044864,2055.1,2054.2,0.5543295]
[1771048256395,2.9328324,2055.1,2054.2,0.5543295]
[1771048256696,2.37495049,2055.1,2054.2,0.5543295]
[1771048256895,0.0044864,2055.1,2054.2,0.5543295]
[1771048257292,0.56236831,2055.1,2054.2,0.5543295]
[1771048261295,0.56236831,2055.1,2054.4,0.57589858]
[1771048262298,0.0044864,2055.1,2054.4,0.57589858]
[1771048263096,0.53455687,2055.1,2054.4,0.57589858]
[1771048264102,0.53007047,2055.0,2054.4,0.57589858]
[1771048267702,0.53007047,2055.0,2054.3,0.81941858]
[1771048268706,0.53007047,2055.0,2054.4,0.57589858]
[1771048268907,2.9005924,2054.8,2054.4,0.57589858]
[1771048270303,0.53007047,2054.7,2054.4,0.57589858]
[1771048270605,2.9005924,2054.8,2054.4,0.57589858]
[1771048272406,0.53007047,2054.7,2054.4,0.57589858]
[1771048273108,2.9005924,2054.8,2054.4,0.57589858]
[1771048276810,2.37052193,2054.9,2054.4,0.57589858]
[1771048279617,2.37500833,2055.1,2054.5,0.2435]
[1771048279910,2.37500833,2055.1,2054.6,0.57589858]
[1771048280313,2.9050788,2055.1,2054.6,0.57589858]
[1771048280811,2.37500833,2055.1,2054.6,0.57589858]
[1771048285917,0.0044864,2055.1,2054.6,0.57589858]
[1771048287522,2.9005924,2055.3,2054.6,0.57589858]
[1771048288620,2.90664328,2055.3,2054.6,0.57589858]
[1771048293524,0.00605088,2055.3,2054.7,0.56277362]
[1771048296821,0.53025025,2055.3,2054.7,0.56277362]
[1771048297628,0.00605088,2055.3,2054.7,0.56277362]
[1771048297829,0.53025025,2055.3,2054.7,0.56277362]
[1771048306333,0.00605088,2055.3,2054.9,0.57288305]
[1771048309130,0.51691857,2055.4,2054.9,0.57288305]
[1771048310137,0.52125524,2055.4,2054.9,0.57288305]
[1771048320444,0.52125524,2055.4,2054.8,0.24346]
[1771048320646,0.49582328,2055.2,2054.8,0.81634305]
[1771048322045,0.49582328,2055.2,2054.9,0.52857686]
[1771048322347,0.49582328,2055.2,2054.8,0.77203686]
[1771048322645,0.49582328,2055.2,2054.9,0.52857686]
[1771048323943,2.37052193,2055.3,2054.9,0.52857686]
[1771048324246,0.49623766,2055.4,2054.9,0.52857686]
[1771048333357,0.49623766,2055.4,2054.8,0.77203686]
[1771048333556,0.49623766,2055.4,2054.9,0.52857686]
[1771048335860,0.49623766,2055.4,2054.8,0.77203686]
[1771048336059,0.49623766,2055.4,2054.9,0.52857686]
[1771048347570,0.46738257,2055.3,2054.7,0.52857686]
[1771048347864,0.46738257,2055.3,2054.4,4.638]
[1771048348064,0.46738257,2055.3,2054.5,0.52857686]
[1771048348270,0.46738257,2055.1,2054.5,0.52857686]
[1771048352463,0.42304391,2054.7,2054.3,0.24352]
[1771048352671,0.42304391,2054.7,2054.4,0.57688444]
[1771048354974,0.41585576,2055.0,2054.4,0.57688444]
[1771048362182,0.40829505,2054.8,2054.3,0.81024729]
[1771048369186,0.40829505,2054.8,2054.4,0.56672729]
[1771048371884,0.40829505,2054.8,2053.8,0.24357]
[1771048372089,0.39645134,2054.6,2053.9,0.56672729]
[1771048376588,0.40497674,2054.5,2053.9,0.56672729]
[1771048381293,0.40867154,2054.4,2053.9,0.56672729]
[1771048384490,0.40867154,2054.4,2053.7,0.54531137]
[1771048387791,2.36914068,2054.3,2053.7,0.54531137]
[1771048387996,0.40274396,2054.2,2053.7,0.17068671]
[1771048390499,0.53031797,2054.0,2053.6,0.00586386]
[1771048390999,0.53031797,2053.8,2053.6,0.00586386]
[1771048391201,0.53031797,2053.8,2053.4,0.54531137]
[1771048391602,0.53031797,2053.8,2053.3,0.24363]
[1771048392102,0.53613061,2053.8,2053.3,0.2493175]
[1771048393600,0.60250434,2053.7,2053.3,0.2493175]
[1771048394499,0.60250434,2053.7,2053.0,2.37270632]
[1771048395104,0.60250434,2053.7,2053.3,0.24363]
[1771048395503,0.60250434,2053.7,2053.3,0.24883371]
[1771048397404,0.00581264,2053.8,2053.3,0.24883371]
[1771048400010,0.60469325,2053.3,2052.1,10.17564887]
[1771048400199,0.60469325,2052.8,2052.2,2.61646632]
[1771048400803,0.60550698,2052.7,2052.2,0.24376]
[1771048401109,0.60550698,2052.7,2052.2,0.24922714]
[1771048403809,0.60715502,2053.1,2052.4,2.37270632]
[1771048404514,0.60750145,2053.0,2052.4,2.37270632]
[1771048407411,0.60750145,2053.0,2052.2,2.62193346]
[1771048408118,0.60750145,2053.0,2052.2,0.24922714]
[1771048408416,0.61323664,2052.8,2052.2,0.24922714]
[1771048409820,2.98587749,2052.9,2052.2,0.24922714]
[1771048410320,2.98587749,2052.9,2052.2,2.62193346]
[1771048411118,0.61317117,2052.9,2052.2,2.62193346]
[1771048413725,0.61573403,2053.2,2052.5,0.24373]
[1771048415824,0.61595778,2053.0,2052.5,0.24373]
[1771048417623,0.61789172,2053.2,2052.5,0.24373]
[1771048427335,0.61965885,2053.1,2052.5,0.24373]
[1771048435035,0.62047262,2052.9,2052.5,0.24373]
[1771048445041,0.62047262,2052.9,2052.2,0.00546714]
[1771048445042,0.5287881,2052.6,2052.2,0.00546714]
[1771048448048,2.37270632,2052.5,2052.2,0.00546714]
[1771048448243,0.5287881,2052.4,2052.0,0.24379]
[1771048449048,0.5287881,2052.4,2052.1,0.17773436]
[1771048449248,0.5287881,2052.4,2052.1,0.18293689]
[1771048449449,0.5287881,2052.4,2052.1,0.00520253]
[1771048451846,0.5287881,2052.4,2052.0,0.24379]
[1771048452846,0.5287881,2052.4,2052.0,0.24728605]
[1771048455254,0.5287881,2052.6,2052.1,0.16611665]
[1771048455747,0.5287881,2052.6,2052.0,0.24728605]
[1771048455949,0.5287881,2052.6,2052.0,0.4134027]
[1771048456453,0.5287881,2052.6,2052.0,0.24728605]
[1771048457753,0.5287881,2052.6,2052.0,0.41681057]
[1771048470056,0.5287881,2052.6,2052.0,0.24728605]
[1771048470862,2.37589678,2053.0,2052.0,0.24728605]
[1771048470863,0.5287881,2052.4,2052.0,0.24728605]
[1771048472068,4.07274516,2053.1,2050.9,12.96093584]
[1771048472069,0.54796266,2052.2,2050.9,12.96093584]
[1771048472270,0.54796266,2051.7,2051.3,0.19016708]
[1771048473161,0.55363084,2051.7,2051.3,0.19414347]
[1771048473566,0.55363084,2051.7,2051.3,0.00397639]
[1771048477272,0.55363084,2051.7,2050.5,4.041]
[1771048477273,0.54796266,2051.6,2050.7,0.20554739]
[1771048478069,0.54796266,2051.6,2050.8,0.24394]
[1771048478274,0.54796266,2051.6,2050.9,0.44943739]
[1771048482268,0.54796266,2051.6,2050.8,0.248203]
[1771048482675,0.54796266,2051.6,2050.8,0.68789304]
[1771048485179,0.54796266,2051.6,2050.9,0.44074788]
[1771048490879,0.54796266,2051.6,2050.8,0.248203]
[1771048491081,0.57881213,2051.4,2050.9,0.44214919]
[1771048493782,0.57881213,2051.4,2051.1,0.43051708]
[1771048493982,0.57881213,2051.6,2051.1,0.43051708]
[1771048498490,0.58448031,2051.7,2051.3,0.56118039]
[1771048498685,0.00566818,2051.7,2051.3,0.56118039]
[1771048499881,0.58448031,2051.7,2051.3,0.56118039]
[1771048500282,0.00566818,2051.7,2051.5,0.56118039]
[1771048500594,0.57881213,2052.4,2051.5,0.56118039]
[1771048500791,0.57881213,2052.2,2051.5,0.56118039]
[1771048501090,0.53464725,2052.0,2051.4,0.24387]
[1771048501294,0.53464725,2051.8,2051.1,0.58612141]
[1771048503490,0.53464725,2051.8,2051.0,0.58612141]
[1771048505694,0.53464725,2051.6,2051.0,0.58612141]
[1771048506395,0.53464725,2051.6,2050.9,0.24392]
[1771048506594,0.53464725,2051.6,2050.9,0.83004141]
[1771048507093,0.53464725,2051.6,2051.0,0.58612141]
[1771048509097,0.53464725,2051.6,2050.9,0.83004141]
[1771048512700,0.53464725,2051.6,2050.9,0.24392]
[1771048512899,0.53464725,2051.4,2050.9,0.24392]
[1771048513398,0.53464725,2051.4,2050.9,0.83004141]
[1771048513596,0.53464725,2051.4,2051.0,0.58612141]
[1771048514198,0.53464725,2051.4,2050.9,0.83004141]
[1771048514897,0.53464725,2051.3,2050.9,0.83004141]
[1771048520401,2.37853427,2051.4,2050.3,4.042]
[1771048520402,0.53464725,2051.1,2050.3,6.42053427]
[1771048520603,0.53464725,2051.1,2050.4,0.24398]
[1771048521402,0.53464725,2051.1,2050.4,0.24964725]
[1771048524605,2.91318152,2050.8,2050.4,0.24964725]
[1771048524808,2.91318152,2050.7,2050.4,0.20782166]
[1771048525107,2.91318152,2050.7,2049.9,6.90353427]
[1771048525406,0.53464725,2050.8,2050.4,0.24398]
[1771048525795,2.37853427,2050.9,2050.4,0.24398]
[1771048525999,0.53464725,2051.0,2050.4,0.24739783]
[1771048526201,2.37853427,2051.1,2050.4,0.24739783]
[1771048526604,2.91318152,2051.1,2050.4,0.24739783]
[1771048526804,2.91318152,2051.3,2050.6,0.24396]
[1771048527707,0.53464725,2051.2,2050.6,0.24396]
[1771048527910,2.91318152,2051.1,2050.6,0.24396]
[1771048529706,0.53464725,2051.0,2050.6,0.24396]
[1771048530501,0.53464725,2051.2,2050.6,0.24396]
[1771048531309,0.53564856,2051.4,2050.6,0.24396]
[1771048532911,0.53564856,2051.4,2050.8,0.24394]